Cogmind - Beta 11.1 @@@ ROGUE MODE // 2022.05.12 @ 18:45:45 Player: Olga Result: Self-destructed Performance ------------- Evolutions (2) 1000 Regions Visited (3) 600 Robots Destroyed (6) 30 Value Destroyed (72) 72 Prototype IDs (1) 20 Alien Tech Used (0) 0 Bonus (0) 0 TOTAL SCORE: 1722 Bonus ------- None Cogmind --------- Core Integrity 306/550 Matter 266/300 Energy 41/100 System Corruption 0% Temperature Cool (0) Movement Core (50) Location -8/Materials Parts ------- > --- POWER (1) -------- (None) > --- PROPULSION (4) --- (None) > --- UTILITY (4) ------ Machine Analyzer Advanced Visual Processing Unit Improved Signal Interpreter Improved Terrain Scanner > --- WEAPON (2) ------- (None) > --- INVENTORY (5) ---- Seismic Detector Hardened Light Armor Plating Improved Light Armor Plating Proton Missile Launcher Maul Peak State ------------ > --- POWER ------------ (None) > --- PROPULSION ------- (None) > --- UTILITY ---------- Machine Analyzer Advanced Visual Processing Unit Improved Sensor Array Improved Signal Interpreter > --- WEAPON ----------- Proton Missile Launcher > --- INVENTORY -------- Seismic Detector Hardened Light Armor Plating Improved Light Armor Plating Maul [Rating: 16] Favorites ----------- Power Heavy Ion Engine Engine Heavy Ion Engine Propulsion Flight Unit Flight Unit Flight Unit Utility Visual Processing Unit Device Improved Sensor Array Processor Visual Processing Unit Weapon Maul Launcher Grenade Launcher Special Weapon Plasma Cutter Impact Weapon Maul Build | -11 -10 -9 -8 ------- Run | Scr Mat Mat Mat Slots Evolved 4 | . . 2 2 Power . | . . . . Propulsion 2 | . . 2 . Utility 2 | . . . 2 Weapon . | . . . . Parts Attached 14 | . 5 3 6 Power 1 | . . 1 . Engine 1 | . . 1 . Core . | . . . . Reactor . | . . . . Propulsion 1 | . 1 . . Treads . | . . . . Leg . | . . . . Wheel . | . . . . Hover . | . . . . Flight 1 | . 1 . . Utility 7 | . 2 1 4 Device 3 | . 1 . 2 Storage . | . . . . Processor 4 | . 1 1 2 Hackware . | . . . . Protection . | . . . . Artifact . | . . . . Weapon 5 | . 2 1 2 Energy Gun . | . . . . Energy Cannon . | . . . . Ballistic Gun . | . . . . Ballistic Cannon . | . . . . Launcher 3 | . 1 . 2 Special Weapon 1 | . . 1 . Impact Weapon 1 | . 1 . . Slashing Weapon . | . . . . Piercing Weapon . | . . . . Special Melee Weapon . | . . . . Unidentified Prototypes 1 | . . 1 . Parts Lost 2 | . . 1 1 Power . | . . . . Propulsion 1 | . . 1 . Utility 1 | . . . 1 Weapon . | . . . . Highest Loss Streak 1 | . . 1 1 To Critical Strikes . | . . . . Average Slot Usage (%) 33 | . 32 33 35 Flight 3 | . 4 9 . Device 3 | . 1 . 7 Processor 18 | . 14 11 25 Launcher 2 | . 2 6 1 Special Weapon 1 | . . 4 1 Impact Weapon 3 | . 9 . . Naked Turns 5 | . 5 . . Heaviest Build 4 | . 4 3 4 Greatest Support 4 | 3 4 4 3 Greatest Overweight (x) 1 | . 1 . 1 Average Overweight (x) . | . . . . Largest Inventory Capacity 5 | 5 5 5 5 Average Capacity 5 | 5 5 5 5 Most Carried 5 | 4 4 5 5 Average Carried 3 | 2 1 4 4 Final Capacity 5 | 5 5 5 5 Final Carried 5 | . 4 5 5 Class Distribution -------------------- 60% | Mutant 39% | Scout Dominant Class ---------------- Mutant | -10/Materials Mutant | -9/Materials Scout | -8/Materials Resources | -11 -10 -9 -8 ----------- Run | Scr Mat Mat Mat Matter Collected 341 | 184 37 40 80 Remotely . | . . . . Salvage Created 81 | . 37 40 4 Parts 9 | . 3 5 1 Haulers Intercepted . | . . . . Recyclers Shooed . | . . . . Parts Field Recycled . | . . . . Retrieved Matter . | . . . . Parts Self-Destructed . | . . . . Prevented . | . . . . Kills | -11 -10 -9 -8 ------- Run | Scr Mat Mat Mat Combat Hostiles Destroyed 3 | . . . 3 AOE 3 | . . . 3 Classes Destroyed 3 | . 2 . 1 Mechanic 2 | . 1 1 . Watcher 1 | . 1 . . Swarmer 3 | . . . 3 Best Kill Streak 3 | . 1 1 3 Combat Bots Only 3 | . . . 3 Max Kills in Single Turn 2 | . 1 1 2 Gunslinging . | . . . . Exploded 2 | . . . 2 Melee . | . . . . Uniques/NPCs Destroyed . | . . . . Combat | -11 -10 -9 -8 -------- Run | Scr Mat Mat Mat Damage Taken 452 | . 35 99 318 Core 307 | . 17 46 244 Absorbed by Shields . | . . . . Core Remaining (%) 93 | 100 93 88 . Volleys Fired 10 | . 1 5 4 Largest 1 | . 1 1 1 Hottest 39 | . 30 20 39 Shots Fired 10 | . 1 5 4 Gun . | . . . . Cannon . | . . . . Launcher 5 | . 1 . 4 Special 5 | . . 5 . Kinetic . | . . . . Thermal 5 | . . 5 . Explosive 4 | . 1 . 3 Electromagnetic 1 | . . . 1 Robot Hit Streak 5 | . . 5 . Robot Miss Streak 3 | . . . 3 Penetration Max . | . . . . Secondary Targets . | . . . . Shots Hit Robots 6 | . 1 5 . Core Hits 8 | . 2 2 4 Critical Kills . | . . . . Critical Parts Destroyed 1 | . 1 . . Critical Strikes 1 | . 1 . . Smash 1 | . 1 . . Melee Attacks 1 | . 1 . . Impact 1 | . 1 . . Slashing . | . . . . Piercing . | . . . . Sneak Attacks . | . . . . Combat Hostiles . | . . . . Follow-up Attacks . | . . . . Damage Inflicted 358 | . 89 56 213 Guns . | . . . . Cannons . | . . . . Explosions 245 | . 32 . 213 Melee 57 | . 57 . . Ramming . | . . . . Kinetic . | . . . . Thermal 56 | . . 56 . Explosive 183 | . 32 . 151 Electromagnetic 62 | . . . 62 Impact 57 | . 57 . . Slashing . | . . . . Piercing . | . . . . Highest Corruption . | . . . . Average Corruption . | . . . . Corruption Purged . | . . . . Corruption Blocked . | . . . . Overload Shots . | . . . . Overflow Damage 57 | . 57 . . Projectiles . | . . . . Explosions . | . . . . Melee 57 | . 57 . . Knockbacks . | . . . . Impact . | . . . . Kinetic . | . . . . Secondary . | . . . . Self-Inflicted Damage 34 | . . . 34 Shots 2 | . . . 2 Rammed . | . . . . Targets Rammed . | . . . . Kicked . | . . . . Crushed . | . . . . Highest Temperature . | . . . . Average Temperature . | . . . . Received Heat Transfer 216 | . . 54 162 Siege Activations . | . . . . Robots Corrupted . | . . . . Combat Hostiles . | . . . . Parts Fried 2 | . 2 . . Impact Corruptions 1 | . 1 . . Robots Melted . | . . . . Combat Hostiles . | . . . . Parts Melted . | . . . . Heat Transferred 185 | . . 185 . Parts Sabotaged . | . . . . Parts Stolen . | . . . . Parts Stripped . | . . . . Power Chain Reactions . | . . . . Missiles Intercepted . | . . . . Alert | -11 -10 -9 -8 ------- Run | Scr Mat Mat Mat Peak Influence 146 | . 84 40 146 Initial 35 | . . 35 14 Average 67 | . 37 37 106 Maximum Alert Level . | . . . . Low Security (%) 100 | 100 100 100 100 Level 1 . | . . . . Level 2 . | . . . . Level 3 . | . . . . Level 4 . | . . . . Level 5 . | . . . . High Security . | . . . . Max Security . | . . . . Squads Dispatched . | . . . . Investigation . | . . . . Extermination . | . . . . Reinforcement . | . . . . Assault . | . . . . Garrison . | . . . . Intercept . | . . . . Searches Triggered . | . . . . Construction Impeded . | . . . . Haulers Reinforced . | . . . . Active Scanning Responses . | . . . . Cargo Convoy Interrupts . | . . . . Stealth | -11 -10 -9 -8 --------- Run | Scr Mat Mat Mat Distress Signals . | . . . . Communications Jammed . | . . . . Distress Signals . | . . . . Times Spotted 17 | . 4 3 10 Peak Tracking Total 6 | . 3 2 6 Tactical Retreats 1 | . . . 1 Traps | -11 -10 -9 -8 ------- Run | Scr Mat Mat Mat Traps Triggered 1 | . 1 . . Indirectly . | . . . . Trap Hack Attempts . | . . . . Triggered . | . . . . Disarmed . | . . . . Reprogrammed . | . . . . Reused . | . . . . Traps Extracted . | . . . . Installed . | . . . . Triggered . | . . . . Machines | -11 -10 -9 -8 ---------- Run | Scr Mat Mat Mat Machines Disabled . | . . . . Max in Single Turn . | . . . . Machines Sabotaged . | . . . . Garrisons Compromised . | . . . . Overloaded Fab Kills . | . . . . Hacking | -11 -10 -9 -8 --------- Run | Scr Mat Mat Mat Machines Accessed 5 | . 1 2 2 Terminals 5 | . 1 2 2 Fabricators . | . . . . Repair Stations . | . . . . Recycling Units . | . . . . Scanalyzers . | . . . . Garrison Access . | . . . . Total Hacks 10 | . 2 4 4 Successful 5 | . 1 2 2 Failed 5 | . 1 2 2 Catastrophic 1 | . . . 1 Database Lockouts . | . . . . Manual 10 | . 2 4 4 Terminals 10 | . 2 4 4 Fabricators . | . . . . Repair Stations . | . . . . Recycling Units . | . . . . Scanalyzers . | . . . . Garrison Access . | . . . . Terminal Hacks 2 | . . 1 1 Robot Analysis 1 | . . . 1 Terminal Index 1 | . . 1 . Fabricator Hacks . | . . . . Repair Station Hacks . | . . . . Recycling Unit Hacks . | . . . . Scanalyzer . | . . . . Garrison Access Hacks . | . . . . Unauthorized Hacks 3 | . 1 1 1 Terminals 3 | . 1 1 1 Botnet 3 | . 1 1 1 Fabricators . | . . . . Repair Stations . | . . . . Recycling Units . | . . . . Scanalyzers . | . . . . Garrison Access . | . . . . Data Cores Recovered . | . . . . Used . | . . . . Hacking Detections 5 | . 1 2 2 Full Trace Events . | . . . . Feedback Events . | . . . . Feedback Blocked . | . . . . Robot Schematics Acquired . | . . . . Robots Built . | . . . . Authchips . | . . . . Time . | . . . . Total Robot Build Rating . | . . . . Part Schematics Acquired . | . . . . Parts Built . | . . . . Authchips . | . . . . Time . | . . . . Total Part Build Rating . | . . . . Parts Repaired . | . . . . Time . | . . . . Parts Recycled . | . . . . Recycled Matter . | . . . . Retrieved Matter . | . . . . Retrieved Components . | . . . . Parts Scanalyzed . | . . . . Part Schematics Acquired . | . . . . Parts Damaged . | . . . . Bothacking | -11 -10 -9 -8 ------------ Run | Scr Mat Mat Mat Used RIF Installer . | . . . . Robots Hacked . | . . . . Non-combat . | . . . . Combat . | . . . . Robot Hacks Applied . | . . . . Relay Couplers Released . | . . . . Fabnet Peak Effective % . | . . . . Robots Rewired . | . . . . Allies Hacked . | . . . . Hacks Repelled . | . . . . Allies | -11 -10 -9 -8 -------- Run | Scr Mat Mat Mat Total Allies . | . . . . Largest Group . | . . . . Highest-Rated Group . | . . . . Highest-Rated Ally . | . . . . Total Orders . | . . . . Ally Attacks . | . . . . Total Damage . | . . . . Kills . | . . . . Allies Corrupted . | . . . . Allies Melted . | . . . . Intel | -11 -10 -9 -8 ------- Run | Scr Mat Mat Mat Robot Analysis Total 1 | . . . 1 Derelict Logs Recovered . | . . . . Drone Launches . | . . . . Drone Recoveries . | . . . . Exploration | -11 -10 -9 -8 ------------- Run | Scr Mat Mat Mat Turns Passed 309 | 3 96 74 136 Spaces Moved 494 | 1 155 126 212 Core 328 | 1 107 8 212 Treads . | . . . . Legs . | . . . . Wheels . | . . . . Hover . | . . . . Flight 166 | . 48 118 . Fastest Speed 40 | 50 40 40 50 Average Speed 48 | 50 51 40 51 Slowest Speed 100 | 50 100 50 100 Overloaded Moves . | . . . . Propulsion Burnouts . | . . . . Robots Hopped 3 | . 1 2 . Cave-ins Triggered . | . . . . Exploration Rate (%) 19 | 2 31 17 29 Regions Visited 3 Branch Regions . Pre-discovered Areas . | . . . . Known Exits Taken . | . . . . Unknown Exits Taken 3 | 1 1 1 . Scrap Searched . | . . . . Spaces Dug . | . . . . Terrain Destroyed 28 | . 9 . 19 Melee . | . . . . Projectile . | . . . . AOE 28 | . 9 . 19 Terrain Rammed . | . . . . Walls Destroyed . | . . . . Machines Disabled . | . . . . Actions | -11 -10 -9 -8 --------- Run | Scr Mat Mat Mat Total 538 | 5 164 135 234 Wait 4 | . . . 4 Move 485 | . 152 121 212 Hop 3 | . 1 2 . Pick Up 8 | . 3 2 3 Fast Attach 9 | . 4 2 3 Attach 1 | . . . 1 Detach 2 | . 1 . 1 Swap 4 | . 1 1 2 Drop 11 | 5 . 2 4 Fire 10 | . 1 5 4 Melee 1 | . 1 . . Ram . | . . . . Kick . | . . . . Crush . | . . . . Escape Stasis . | . . . . Rewire . | . . . . Trap . | . . . . Miscellaneous . | . . . . Route ------- -11/Scrapyard -10/Materials -9/Materials -8/Materials History --------- Turn | Location | Event 1 | -11/Scrapyard | Released all parts (6) 4 | -11/Scrapyard | Discovered new exit (range 0) 4 | -11/Scrapyard | Entered Materials 89 | -10/Materials | Discovered new exit (range 18) 100 | -10/Materials | Entered another Materials area 100 | -9/Materials | Evolved 2 slots: Propulsion x2 155 | -9/Materials | Discovered new exit (range 12) 174 | -9/Materials | Entered another Materials area 174 | -8/Materials | Evolved 2 slots: Utility x2 310 | -8/Materials | Self-destructed Last Messages --------------- 00255_ K-01 Serf collects debris. 00256_ U-05 Engineer lays Concrete. 00257_ U-05 Engineer builds a Door. 00262_ U-05 Engineer builds a Wall. 00270_ K-01 Serf cleans the Matter Pump. 00275_ K-01 Serf collects debris. 00277_ Acquired 53 matter. 00278_ Dropped Lgt. Ion Engine. 00278_ K-01 Serf collects debris. 00281_ Acquired Proton Missile Launcher. 00286_ Door malfunctions. 00286_ K-01 Serf cleans the Matter Pump. 00291_ U-05 Engineer destroyed. 00292_ K-01 Serf cleans the Matter Pump. 00293_ Acquired 27 matter. 00293_ Imp. Sensor Array destroyed. 00297_ >> Machine Analyzer network decryption results: 00297_ Terminal x1 00302_ Acquired Imp. Terrain Scanner. 00309_ K-01 Serf collects debris. Map ----- +----------------------------------------------------+ | ???????????????????????????????? | | ???????????????????????????????? | | ???????????????????????????????? | | ???????????????????????????"""?? | | ??????????????????????####?"""?? | | ??????????????????????# #?"""?? | | ??????????????????????# # """?? | | ??????????????????????+ /?"""?? | | ??????????????????????# #?????? | | ??????????????????#+#?# #?????? | | ??????????????????# #?# #?????? | | ??????????????????# #?# #?????? | | ?????????????????## ### #?????? | | ?????????????????# "T" #?????? | | ?????????????????# #?????? | | ?????????????????# #?????? | | ####????????? ???# [ #?????? | | ]!!#?????????????+ #?????? | | !!#?????????????# ]]] #?????? | | #????????????## ]]] #?????? | | ############## ]] ##????? | | #????? | | | #????? | | ! * #### #????? | | ##############/######/#????? | | #???????????# @#????? | | ##???????????# #????? | | #????????#???# #????? | | " #????????????# #????? | | " #????????????# k #????? | | " #????????????# k #????? | | #????????????# #????? | | #????????????# #????? | | " #????????????###########????? | | " #???????????????????????????? | | " #????????????????#??????????? | | #???????????????????????????? | | #???????????????????????????? | | #???????????????????????????? | | ????????????????????????????? | | ? ??????????????????????? ?????? | | ??????????????????????????????? | | ???????????????????????????????? | | ???????????????????????????????? | | ???????????????????????????????? | | ???????????????????????????????? | | ???????????????????????????????? | | ???????????????????????????????? | | ???????????????????????????????? | | ?????????????T?????????????????? | +----------------------------------------------------+ Best States ------------- Heat Dissipation 31 Energy Generation 5 Energy Capacity 100 Matter Stores 286 Matter Capacity 300 Sight Range 20 Robot Scan Range 15 Terrain Scan Range 16 Terrain Scan Density 10 Evasion (%) 62 Item Schematics ----------------- None Robot Schematics ------------------ None Fabricated ------------ Nothing Alien Tech Used ----------------- None Achievements -------------- None Challenges ------------ None Game ------ Seed RefineryCentriumInterrupter Manual? 0 Play Time 00:09:31 Cumulative 248.8 hours Start 2022.05.12 @ 18:39:06 End 2022.05.12 @ 18:45:45 Sessions 1 Manual Loads 0 Difficulty Rogue Special Mode None Game No. 346 Rogue 343 Adventurer 0 Explorer 3 Win Type - Total 8 Types 8/0/0/0/0/0/0/0/0 Lore% 71 Gallery% 75 Achievement% 62 Wizard Run 0 Options --------- ASCII 1 Keyboard 1 Movement Vi Keybinds 0 Fullscreen 1 Font 18/SmallcapsGlow Map View 76x50 Tactical HUD 1 Map Filters NONE Filters NONE Steam 1 RUN: 789297b4-4d6f-433c-8e03-1498c2cd6866